fUSD/lending_fUSD_20241112
["ID","MTS","AMOUNT","RATE_DAILY","PERIOD"]
[342104272,1731445159275,-1512.885758,0.00013,2]
[342104273,1731445159301,-1512.885758,0.00013,2]
[342104274,1731445159327,-1512.885758,0.00013,2]
[342104275,1731445159357,-1512.885758,0.00013,2]
[342104276,1731445159382,-1512.885758,0.00013,2]
[342104277,1731445159407,-1512.885758,0.00013,2]
[342104278,1731445159431,-1512.885758,0.00013,2]
[342104279,1731445159460,-1512.885758,0.00013,2]
[342104280,1731445159485,-1512.885758,0.00013,2]
[342104281,1731445159509,-1512.885758,0.00013,2]
[342104282,1731445159533,-1512.885758,0.00013,2]
[342104283,1731445159558,-1512.885758,0.00013,2]
[342104284,1731445159580,-1512.885758,0.00013,2]
[342104285,1731445159605,-1512.885758,0.00013,2]
[342104286,1731445159628,-151.0,0.00013,2]
[342104287,1731445159654,-151.0,0.00013,2]
[342104288,1731445159678,-151.0,0.00013,2]
[342104289,1731445159702,-151.0,0.00013,2]
[342104290,1731445159730,-151.0,0.00013,2]
[342104291,1731445159923,-151.0,0.00013,2]
[342104292,1731445159959,-151.0,0.00013,2]
[342104293,1731445159983,-331.705902,0.00013,2]
[342104294,1731445160005,-331.705902,0.00013,2]
[342104295,1731445160030,-331.705902,0.00013,2]
[342104296,1731445160053,-331.705902,0.00013,2]
[342104297,1731445160077,-331.705902,0.00013,2]
[342104298,1731445160105,-331.705902,0.00013,2]
[342104299,1731445160128,-331.705902,0.00013,2]
[342104300,1731445160151,-331.705902,0.00013,2]
[342104301,1731445160174,-331.705902,0.00013,2]
[342104302,1731445160197,-331.705902,0.00013,2]
[342104303,1731445160219,-331.705902,0.00013,2]
[342104304,1731445160240,-331.705902,0.00013,2]
[342104305,1731445160262,-331.705902,0.00013,2]
[342104306,1731445160284,-331.705902,0.00013,2]
[342104307,1731445160306,-331.914001,0.00013,2]
[342104308,1731445160329,-331.914001,0.00013,2]
[342104309,1731445160355,-331.914001,0.00013,2]
[342104310,1731445160377,-331.914001,0.00013,2]
[342104311,1731445160398,-331.914001,0.00013,2]
[342104312,1731445160420,-331.914001,0.00013,2]
[342104313,1731445160443,-331.914001,0.00013,2]
[342104314,1731445160467,-331.914001,0.00013,2]
[342104315,1731445160492,-331.914001,0.00013,2]
[342104316,1731445160515,-331.914001,0.00013,2]
[342104317,1731445160540,-331.914001,0.00013,2]
[342104318,1731445160563,-331.914001,0.00013,2]
[342104319,1731445160585,-331.914001,0.00013,2]
[342104320,1731445160612,-331.914001,0.00013,2]
[342104321,1731445160639,-8717.722299,0.00013,2]
[342104322,1731445160660,-8717.722299,0.00013,2]
[342104323,1731445160683,-200.0,0.00013009,2]
[342104324,1731445160706,-200.0,0.00013009,2]
[342104325,1731445160731,-200.0,0.00013009,2]
[342104326,1731445160753,-200.0,0.00013009,2]
[342104327,1731445160775,-227.88,0.00013028,2]
[342104328,1731445160798,-39356.24485899,0.00013037,2]
[342104329,1731445160820,-279.600975,0.00013037,2]
[342104330,1731445160843,-279.600975,0.00013037,2]
[342104331,1731445160865,-167.0,0.00013065,2]
[342104332,1731445160888,-406.96,0.0001311,2]
[342104333,1731445160910,-680.72930077,0.00013121,2]
[342104334,1731445160932,-1000.0,0.00013121,2]
[342104335,1731445160954,-1000.0,0.00013121,2]
[342104336,1731445160977,-483.32,0.00013253,2]
[342104337,1731445161001,-234.69,0.00013358,2]
[342104338,1731445161024,-474.43,0.0001339,2]
[342104339,1731445161046,-167.0,0.00013458,2]
[342104340,1731445161068,-227.88,0.00013489,2]
[342104342,1731445161089,-255.0,0.00013491,2]
[342104344,1731445161114,-162562.58479647,0.000135,2]
[342104345,1731445161137,-275.098438,0.000135,2]
[342104346,1731445161159,-275.098438,0.000135,2]
[342104347,1731445161182,-153.201627,0.000135,2]
[342104348,1731445161204,-154.071682,0.000135,2]
[342104349,1731445161226,-154.071682,0.000135,2]
[342104350,1731445161248,-151.0,0.000135,2]
[342104351,1731445161270,-266.276399,0.000135,2]
[342104352,1731445161293,-220.373671,0.000135,2]
[342104353,1731445161316,-220.373664,0.000135,2]
[342104354,1731445161342,-251.491863,0.000135,2]
[342104355,1731445161368,-301.827692,0.000135,2]
[342104356,1731445161390,-251.491859,0.000135,2]
[342104357,1731445161413,-301.827697,0.000135,2]
[342104358,1731445161436,-151.0,0.000135,2]
[342104359,1731445161459,-330.500353,0.000135,2]
[342104360,1731445161481,-330.500362,0.000135,2]
[342104361,1731445161503,-476.841386,0.000135,2]
[342104362,1731445161525,-476.841386,0.000135,2]
[342104363,1731445161547,-151.0,0.000135,2]
[342104364,1731445161568,-151.0,0.000135,2]
[342104365,1731445161590,-248.419745,0.000135,2]
[342104366,1731445161614,-212.506213,0.000135,2]
[342104367,1731445161638,-248.419745,0.000135,2]
[342104368,1731445161661,-212.506213,0.000135,2]
[342104369,1731445161684,-151.0,0.000135,2]
[342104370,1731445161708,-273.845813,0.000135,2]
[342104371,1731445161730,-273.845813,0.000135,2]
[342104372,1731445161755,-1512.885758,0.000135,2]
[342104373,1731445161780,-1512.885758,0.000135,2]
[342104374,1731445161805,-151.0,0.000135,2]
[342104375,1731445161829,-331.705902,0.000135,2]
[342104376,1731445161857,-331.705902,0.000135,2]
[342104377,1731445161881,-150.0,0.00013538,2]
[342104378,1731445161905,-483.32,0.00013562,2]
[342104379,1731445161931,-3000.0,0.0001357,2]
[342104380,1731445161955,-166.67,0.00013585,2]
[342104381,1731445161980,-1000.0,0.00013599,2]
[342104382,1731445162004,-420.0,0.00013607,2]
[342104383,1731445162026,-182.80836,0.00013637,2]
[342104384,1731445162050,-154.534694,0.00013698,2]
[342104385,1731445162072,-154.534694,0.00013698,2]
[342104386,1731445162101,-151.650044,0.00013698,2]
[342104387,1731445162124,-151.650044,0.00013698,2]
[342104388,1731445162147,-150.269451,0.00013698,2]
[342104389,1731445162171,-621.672825,0.00013698,2]
[342104390,1731445162197,-621.672825,0.00013698,2]
[342104391,1731445162221,-150.269451,0.00013698,2]
[342104392,1731445162244,-150.269451,0.00013698,2]
[342104393,1731445162267,-621.672825,0.00013698,2]
[342104394,1731445162290,-150.269451,0.00013698,2]
[342104395,1731445162313,-621.672825,0.00013698,2]
[342104396,1731445162337,-621.672825,0.00013698,2]
[342104397,1731445162367,-154.453509,0.00013698,2]
[342104398,1731445162391,-150.269451,0.00013698,2]
[342104399,1731445162415,-621.672825,0.00013698,2]
[342104400,1731445162437,-154.453509,0.00013698,2]
[342104401,1731445162663,-150.269451,0.00013698,2]
[342104402,1731445162690,-621.672825,0.00013698,2]
[342104403,1731445162716,-154.453509,0.00013698,2]
[342104404,1731445162740,-150.269451,0.00013698,2]
[342104405,1731445162766,-621.672825,0.00013698,2]
[342104406,1731445162790,-154.453509,0.00013698,2]
[342104407,1731445162815,-150.269451,0.00013698,2]
[342104408,1731445162839,-154.453509,0.00013698,2]
[342104409,1731445162868,-621.672825,0.00013698,2]
[342104410,1731445162891,-150.269451,0.00013698,2]
[342104411,1731445162915,-154.453509,0.00013698,2]
[342104412,1731445162938,-621.672825,0.00013698,2]
[342104413,1731445162964,-150.269451,0.00013698,2]
[342104414,1731445162987,-154.453509,0.00013698,2]
[342104415,1731445163011,-621.672825,0.00013698,2]
[342104416,1731445163034,-150.269451,0.00013698,2]
[342104417,1731445163059,-621.672825,0.00013698,2]
[342104418,1731445163082,-154.453509,0.00013698,2]
[342104419,1731445163107,-621.672825,0.00013698,2]
[342104420,1731445163132,-150.269451,0.00013698,2]
[342104421,1731445163155,-621.672825,0.00013698,2]
[342104422,1731445163178,-150.269451,0.00013698,2]
[342104423,1731445163202,-154.453509,0.00013698,2]
[342104424,1731445163225,-621.672825,0.00013698,2]
[342104425,1731445163249,-154.453509,0.00013698,2]
[342104426,1731445163272,-621.672825,0.00013698,2]
[342104427,1731445163295,-150.269451,0.00013698,2]
[342104428,1731445163318,-621.672825,0.00013698,2]
[342104429,1731445163347,-150.269451,0.00013698,2]
[342104430,1731445163372,-154.453509,0.00013698,2]
[342104431,1731445163395,-621.672825,0.00013698,2]
[342104432,1731445163418,-154.453509,0.00013698,2]
[342104433,1731445163441,-150.269451,0.00013698,2]
[342104434,1731445163465,-621.672825,0.00013698,2]
[342104435,1731445163492,-154.453509,0.00013698,2]
[342104436,1731445163516,-150.269451,0.00013698,2]
[342104437,1731445163540,-621.672825,0.00013698,2]
[342104438,1731445163563,-150.269451,0.00013698,2]
[342104439,1731445163587,-621.672825,0.00013698,2]
[342104440,1731445163616,-150.269451,0.00013698,2]
[342104441,1731445163643,-621.672825,0.00013698,2]
[342104442,1731445163666,-621.672825,0.00013698,2]
[342104443,1731445163690,-150.269451,0.00013698,2]
[342104444,1731445163716,-621.672825,0.00013698,2]
[342104445,1731445163739,-150.269451,0.00013698,2]
[342104446,1731445163762,-150.269451,0.00013698,2]
[342104447,1731445163786,-621.672825,0.00013698,2]
[342104448,1731445163811,-150.269451,0.00013698,2]
[342104449,1731445163834,-150.269451,0.00013698,2]
[342104450,1731445163861,-150.269451,0.00013698,2]
[342104451,1731445163884,-151.0,0.00013699,2]
[342104452,1731445163907,-151.0,0.00013699,2]
[342104453,1731445163932,-151.0,0.00013699,2]
[342104454,1731445163955,-151.0,0.00013699,2]
[342104455,1731445163978,-151.0,0.00013699,2]
[342104456,1731445164001,-151.0,0.00013699,2]
[342104457,1731445164024,-151.0,0.00013699,2]
[342104458,1731445164047,-290.732902,0.00013699,2]
[342104459,1731445164071,-151.0,0.00013699,2]
[342104460,1731445164094,-151.0,0.00013699,2]
[342104461,1731445164119,-151.483516,0.00013699,2]
[342104462,1731445164143,-202.997197,0.00013699,2]
[342104463,1731445164165,-202.997197,0.00013699,2]
[342104464,1731445164189,-202.997197,0.00013699,2]
[342104465,1731445164212,-202.997197,0.00013699,2]
[342104466,1731445164237,-202.997197,0.00013699,2]
[342104467,1731445164261,-202.997197,0.00013699,2]
[342104468,1731445164284,-202.997197,0.00013699,2]
[342104469,1731445164307,-202.997197,0.00013699,2]
[342104470,1731445164330,-202.997197,0.00013699,2]
[342104471,1731445164359,-202.997197,0.00013699,2]
[342104472,1731445164386,-202.997197,0.00013699,2]
[342104473,1731445164410,-202.997197,0.00013699,2]
[342104474,1731445164435,-202.997197,0.00013699,2]
[342104475,1731445164460,-202.997197,0.00013699,2]
[342104476,1731445164486,-202.997197,0.00013699,2]
[342104477,1731445164511,-202.997197,0.00013699,2]
[342104478,1731445164534,-202.997197,0.00013699,2]
[342104479,1731445164557,-202.997197,0.00013699,2]
[342104480,1731445164580,-202.997189,0.00013699,2]
[342104481,1731445164606,-1000.0,0.00013699,2]
[342104482,1731445164631,-973.0,0.00013699,2]
[342104483,1731445164658,-400.0,0.00013699,2]
[342104484,1731445164683,-1000.0,0.00013699,2]
[342104485,1731445164710,-1000.0,0.00013699,2]
[342104486,1731445164734,-1000.0,0.00013699,2]
[342104487,1731445164757,-1000.0,0.00013699,2]
[342104488,1731445164781,-1000.0,0.00013699,2]
[342104489,1731445164805,-1000.0,0.00013699,2]
[342104490,1731445164828,-1000.0,0.00013699,2]
[342104491,1731445164853,-1000.0,0.00013699,2]
[342104492,1731445164876,-1000.0,0.00013699,2]
[342104493,1731445164899,-1000.0,0.00013699,2]
[342104494,1731445164923,-1017.0,0.00013699,2]
[342104495,1731445164946,-6007.99,0.00013699,2]
[342104496,1731445164969,-151.0,0.00013699,2]
[342104497,1731445164993,-261.774635,0.00013699,2]
[342104498,1731445165016,-300.0,0.00013699,2]
[342104499,1731445165040,-3657.8,0.00013699,2]
[342104500,1731445165064,-250.0,0.00013699,2]
[342104501,1731445165088,-500.0,0.00013699,2]
[342104502,1731445165114,-200.0,0.00013699,2]
[342104503,1731445165138,-1000.0,0.00013699,2]
[342104504,1731445165162,-1000.0,0.00013699,2]
[342104505,1731445165370,-1000.0,0.00013699,2]
[342104506,1731445165396,-1000.0,0.00013699,2]
[342104507,1731445165420,-1000.0,0.00013699,2]
[342104508,1731445165449,-1000.0,0.00013699,2]
[342104509,1731445165473,-1000.0,0.00013699,2]
[342104510,1731445165497,-1000.0,0.00013699,2]
[342104511,1731445165521,-1000.0,0.00013699,2]
[342104512,1731445165544,-1000.0,0.00013699,2]
[342104513,1731445165569,-1000.0,0.00013699,2]
[342104514,1731445165592,-1000.0,0.00013699,2]
[342104515,1731445165620,-1000.0,0.00013699,2]
[342104516,1731445165646,-1650.16,0.00013699,2]
[342104517,1731445165668,-1000.0,0.00013699,2]
[342104518,1731445165691,-1000.0,0.00013699,2]
[342104519,1731445165716,-1000.0,0.00013699,2]
[342104520,1731445165740,-781.0,0.00013699,2]
[342104521,1731445165766,-1000.0,0.00013699,2]
[342104522,1731445165791,-1000.0,0.00013699,2]
[342104523,1731445165816,-1000.0,0.00013699,2]
[342104524,1731445165840,-1000.0,0.00013699,2]
[342104525,1731445165868,-1000.0,0.00013699,2]
[342104526,1731445165891,-1000.0,0.00013699,2]
[342104527,1731445165915,-1000.0,0.00013699,2]
[342104528,1731445165938,-1000.0,0.00013699,2]
[342104529,1731445165961,-1000.0,0.00013699,2]
[342104530,1731445165985,-1000.0,0.00013699,2]
[342104531,1731445166007,-1000.0,0.00013699,2]
[342104532,1731445166032,-1000.0,0.00013699,2]
[342104533,1731445166055,-1000.0,0.00013699,2]
[342104534,1731445166078,-1000.0,0.00013699,2]
[342104535,1731445166104,-1000.0,0.00013699,2]
[342104536,1731445166127,-1000.0,0.00013699,2]
[342104537,1731445166150,-1000.0,0.00013699,2]
[342104538,1731445166173,-1000.0,0.00013699,2]
[342104539,1731445166196,-1000.0,0.00013699,2]
[342104540,1731445166219,-1000.0,0.00013699,2]
[342104541,1731445166241,-1000.0,0.00013699,2]
[342104542,1731445166264,-500.0,0.00013699,2]
[342104543,1731445166286,-501.84112349,0.00013699,2]
[342104544,1731445166308,-500.0,0.00013699,2]
[342104545,1731445166330,-500.0,0.00013699,2]
[342104546,1731445166355,-500.22635324,0.00013699,2]
[342104547,1731445166378,-500.0,0.00013699,2]
[342104548,1731445166401,-460.39050789,0.00013699,2]
[342104549,1731445166423,-500.0,0.00013699,2]
[342104550,1731445166445,-187.12330223,0.00013699,2]
[342104551,1731445166468,-500.0,0.00013699,2]
[342104552,1731445166491,-500.0,0.00013699,2]
[342104553,1731445166513,-500.0,0.00013699,2]
[342104554,1731445166536,-513.9987955,0.00013699,2]
[342104555,1731445166558,-500.0,0.00013699,2]
[342104556,1731445166606,-151.0,0.00013699,2]
[342104557,1731445166651,-151.0,0.00013699,2]
[342104558,1731445166699,-467.96618,0.00013699,2]
[342104559,1731445166744,-151.0,0.00013699,2]
[342104560,1731445166787,-467.966176,0.00013699,2]
[342104561,1731445166827,-488.727779,0.00013699,2]
[342104562,1731445166869,-488.727784,0.00013699,2]
[342104563,1731445166908,-151.0,0.00013699,2]
[342104564,1731445166945,-340.115635,0.00013699,2]
[342104565,1731445166984,-190.588194,0.00013699,2]
[342104566,1731445167022,-190.588186,0.00013699,2]
[342104567,1731445167058,-313.333646,0.00013699,2]
[342104568,1731445167095,-313.33365,0.00013699,2]
[342104569,1731445167139,-685.634845,0.00013699,2]
[342104570,1731445167177,-685.634845,0.00013699,2]
[342104571,1731445167217,-375.0,0.000137,2]
[342104572,1731445167260,-967.7,0.000137,2]
[342104573,1731445167296,-363.0,0.000137,2]
[342104574,1731445167334,-1000.0,0.000137,2]
[342104575,1731445167375,-229.0,0.000137,2]
[342104576,1731445167413,-182.80836,0.00013807,2]
[342104577,1731445167452,-167.0,0.0001385,2]
[342104578,1731445167490,-2400.0,0.00013876,2]
[342104579,1731445167529,-234.69,0.00013939,2]
[342104580,1731445167568,-227.88,0.0001395,2]
[342104581,1731445167608,-182.80836,0.00013978,2]
[342104582,1731445167649,-108847.67319466,0.00014,2]
[342104583,1731445167686,-1118451.26816024,0.00014,2]
[342104584,1731445167726,-124960.07727189,0.00014,2]
[342104585,1731445167763,-7995.72175479,0.00014,2]
[342104586,1731445167801,-177649.03316054,0.00014,2]
[342104587,1731445167840,-275.098438,0.00014,2]
[342104588,1731445167882,-275.098438,0.00014,2]
[342104589,1731445167920,-151.0,0.00014,2]
[342104590,1731445167959,-151.0,0.00014,2]
[342104591,1731445167998,-300.16515,0.00014,2]
[342104592,1731445168036,-154.071682,0.00014,2]
[342104593,1731445168074,-154.071682,0.00014,2]
[342104594,1731445168115,-154.071682,0.00014,2]
[342104595,1731445168153,-154.071686,0.00014,2]
[342104596,1731445168191,-151.0,0.00014,2]
[342104597,1731445168230,-167.683706,0.00014,2]
[342104598,1731445168270,-154.534694,0.00014,2]
[342104599,1731445168313,-154.534694,0.00014,2]
[342104600,1731445168356,-154.534694,0.00014,2]
[342104601,1731445168398,-154.534703,0.00014,2]
[342104602,1731445168439,-151.650044,0.00014,2]
[342104603,1731445168478,-151.650044,0.00014,2]
[342104604,1731445168519,-151.650044,0.00014,2]
[342104605,1731445168802,-151.650043,0.00014,2]
[342104606,1731445168826,-279.600975,0.00014,2]
[342104607,1731445168853,-279.60097,0.00014,2]
[342104608,1731445168877,-1702580.54608323,0.00014,2]
[342104609,1731445168902,-1500.0,0.00014,2]
[342104610,1731445168926,-151.0,0.00014,2]
[342104611,1731445168950,-476.841386,0.00014,2]
[342104612,1731445168974,-476.841395,0.00014,2]
[342104613,1731445168997,-151.0,0.00014,2]
[342104614,1731445169020,-248.419745,0.00014,2]
[342104615,1731445169044,-212.506213,0.00014,2]
[342104616,1731445169067,-212.506219,0.00014,2]
[342104617,1731445169091,-248.419739,0.00014,2]
[342104618,1731445169119,-151.0,0.00014,2]
[342104619,1731445169143,-273.845813,0.00014,2]
[342104620,1731445169168,-273.84582,0.00014,2]
[342104621,1731445169193,-1512.885758,0.00014,2]
[342104622,1731445169217,-1512.885758,0.00014,2]
[342104623,1731445169241,-331.705902,0.00014,2]
[342104624,1731445169266,-331.705909,0.00014,2]
[342104625,1731445169289,-331.914001,0.00014,2]
[342104626,1731445169312,-331.914001,0.00014,2]
[342104627,1731445169337,-331.914001,0.00014,2]
[342104628,1731445169368,-331.914009,0.00014,2]
[342104629,1731445169391,-5000.0,0.00014024,2]
[342104630,1731445169415,-4813.56,0.00014026,2]
[342104631,1731445169438,-1719.83,0.00014054,2]
[342104632,1731445169461,-5000.0,0.00014059,2]
[342104633,1731445169484,-25000.0,0.00014094,2]
[342104634,1731445169507,-619.53,0.000141,2]
[342104635,1731445169530,-3467.59,0.000141,2]
[342104636,1731445169552,-5000.0,0.00014112,2]
[342104637,1731445169574,-1505.7186148,0.00014122,2]
[342104638,1731445169597,-1500.0,0.00014122,2]
[342104639,1731445169622,-2509.43,0.00014123,2]
[342104640,1731445169645,-25000.0,0.00014134,2]
[342104641,1731445169672,-781.03,0.0001414,2]
[342104642,1731445169696,-25000.0,0.00014144,2]
[342104643,1731445169719,-182.80836,0.00014148,2]
[342104644,1731445169745,-2700.0,0.0001415,2]
[342104645,1731445169768,-1100.0,0.0001415,2]
[342104646,1731445169791,-5000.0,0.0001416,2]
[342104647,1731445169814,-5000.0,0.00014164,2]
[342104648,1731445169839,-5000.0,0.00014201,2]
[342104649,1731445169866,-5000.0,0.00014221,2]
[342104650,1731445169893,-5000.0,0.00014228,2]
[342104651,1731445169916,-545.81,0.00014235,2]
[342104652,1731445169941,-5000.0,0.00014246,2]
[342104653,1731445169965,-24107.32,0.00014247,2]
[342104654,1731445169987,-1000.0,0.00014247,2]
[342104655,1731445170011,-1000.0,0.00014247,2]
[342104656,1731445170034,-1000.0,0.00014247,2]
[342104657,1731445170056,-226.97732836,0.00014247,2]
[342104658,1731445170079,-1000.0,0.00014247,2]
[342104659,1731445170105,-1000.0,0.00014247,2]
[342104660,1731445170129,-1000.0,0.00014247,2]
[342104661,1731445170152,-917.17734151,0.00014247,2]
[342104662,1731445170175,-1000.0,0.00014247,2]
[342104663,1731445170198,-4786.56,0.00014258,2]
[342104664,1731445170221,-5000.0,0.00014264,2]
[342104665,1731445170244,-275.098438,0.00014264,2]
[342104666,1731445170268,-275.098438,0.00014264,2]
[342104667,1731445170291,-4052.47,0.0001427,2]
[342104668,1731445170314,-4709.13,0.0001428,2]
[342104669,1731445170339,-1000.0,0.0001429,2]
[342104670,1731445170371,-573.32,0.00014297,2]
[342104671,1731445170394,-1320.89,0.00014304,2]
[342104672,1731445170418,-5000.0,0.00014317,2]
[342104673,1731445170442,-5000.0,0.00014318,2]
[342104674,1731445170466,-182.80836,0.00014318,2]
[342104675,1731445170492,-5000.0,0.00014319,2]
[342104676,1731445170516,-3636.78,0.00014337,2]
[342104677,1731445170540,-5000.0,0.00014339,2]
[342104678,1731445170562,-5000.0,0.0001435,2]
[342104679,1731445170586,-5000.0,0.00014353,2]
[342104680,1731445170618,-200.0,0.0001437,2]
[342104681,1731445170646,-5000.0,0.00014375,2]
[342104682,1731445170672,-150.0,0.00014375,5]
[342104683,1731445170698,-238.6587108,0.00014375,5]
[342104684,1731445170721,-5000.0,0.00014376,2]
[342104685,1731445170746,-5000.0,0.00014377,2]
[342104686,1731445170769,-5000.0,0.00014378,2]
[342104687,1731445170792,-5000.0,0.00014393,2]
[342104688,1731445170815,-5000.0,0.000144,2]
[342104689,1731445170839,-25000.0,0.0001441,2]
[342104690,1731445170868,-227.88,0.0001441,2]
[342104691,1731445170891,-5000.0,0.00014443,2]
[342104692,1731445170913,-5000.0,0.00014447,2]
[342104693,1731445170936,-25000.0,0.00014449,2]
[342104694,1731445170959,-5000.0,0.00014459,2]
[342104695,1731445170982,-5000.0,0.00014461,2]
[342104696,1731445171005,-1000.0,0.00014499,2]
[342104697,1731445171027,-1000.0,0.00014499,2]
[342104698,1731445171050,-1000.0,0.00014499,2]
[342104699,1731445171073,-207266.57275641,0.000145,3]
[342104700,1731445171097,-355.0,0.0001451,2]
[342104701,1731445171126,-5000.0,0.00014525,2]
[342104702,1731445171148,-643.82,0.00014531,2]
[342104703,1731445171174,-25000.0,0.00014542,2]
[342104704,1731445171198,-5000.0,0.00014543,2]
[342104705,1731445171222,-5000.0,0.00014548,2]
[342104706,1731445171245,-5000.0,0.00014554,2]
[342104707,1731445171269,-406.96,0.00014567,2]
[342104708,1731445171294,-5000.0,0.00014578,2]
[342104709,1731445171317,-5000.0,0.00014597,2]
[342104710,1731445171341,-2500.0,0.00014613,2]
[342104711,1731445171370,-5000.0,0.00014641,2]
[342104712,1731445171394,-5000.0,0.00014677,2]
[342104713,1731445171418,-433.0,0.00014681,2]
[342104714,1731445171441,-25000.0,0.00014685,2]
[342104715,1731445171464,-25000.0,0.00014695,2]
[342104716,1731445171487,-5000.0,0.00014709,2]
[342104717,1731445171511,-2509.42,0.00014733,2]
[342104718,1731445171714,-150.0,0.00014735,2]
[342104719,1731445171739,-150.0,0.00014739,2]
[342104720,1731445171763,-150.0,0.00014745,2]
[342104721,1731445171789,-150.0,0.00014758,2]
[342104722,1731445171814,-150.0,0.00014759,2]
[342104723,1731445171837,-5000.0,0.00014761,2]
[342104724,1731445171862,-150.0,0.00014762,2]
[342104725,1731445171887,-150.0,0.00014762,2]
[342104726,1731445171910,-1500.0,0.00014767,2]
[342104727,1731445171934,-5000.0,0.00014769,2]
[342104728,1731445171958,-1500.0,0.00014773,2]
[342104729,1731445171983,-150.0,0.00014777,2]
[342104730,1731445172006,-300.0,0.00014779,2]
[342104731,1731445172029,-150.0,0.00014783,2]
[342104732,1731445172052,-2500.0,0.00014784,2]
[342104733,1731445172075,-1745.0,0.00014795,2]
[342104734,1731445172100,-150.0,0.00014798,2]
[342104735,1731445172128,-4711.5760964,0.000148,2]
[342104736,1731445172150,-1500.0,0.00014803,2]
[342104737,1731445172173,-670.4,0.00014809,2]
[342104738,1731445172197,-150.0,0.00014813,2]
[342104739,1731445172220,-150.0,0.00014813,2]
[342104740,1731445172242,-1500.0,0.00014819,2]
[342104741,1731445172265,-3000.0,0.0001482,2]
[342104742,1731445172288,-5000.0,0.0001483,2]
[342104743,1731445172313,-1320.89,0.00014842,2]
[342104744,1731445172335,-5000.0,0.00014846,2]
[342104745,1731445172362,-150.0,0.00014848,2]
[342104746,1731445172384,-12031.89635301,0.0001485,2]
[342104747,1731445172408,-150.0,0.0001486,2]
[342104748,1731445172432,-150.0,0.00014861,2]
[342104749,1731445172455,-150.0,0.00014861,2]
[342104750,1731445172479,-5000.0,0.00014871,2]
[342104751,1731445172502,-227.88,0.00014871,2]
[342104752,1731445172524,-150.0,0.00014873,2]
[342104753,1731445172547,-1500.0,0.00014876,2]
[342104754,1731445172570,-621.672825,0.00014876,2]
[342104755,1731445172593,-150.269451,0.00014876,2]
[342104756,1731445172618,-474.43,0.00014878,2]
[342104757,1731445172641,-1500.0,0.00014879,2]
[342104758,1731445172669,-150.0,0.0001488,2]
[342104759,1731445172693,-150.0,0.00014885,2]
[342104760,1731445172716,-1500.0,0.00014887,2]
[342104761,1731445172742,-150.0,0.00014888,2]
[342104762,1731445172766,-150.0,0.00014896,2]
[342104763,1731445172790,-19445.78477571,0.00014899,2]
[342104764,1731445172812,-1000.0,0.00014899,2]
[342104765,1731445172835,-1000.0,0.00014899,2]
[342104766,1731445172861,-1000.0,0.00014899,2]
[342104767,1731445172884,-1000.0,0.00014899,2]
[342104768,1731445172908,-2000.0,0.000149,2]
[342104769,1731445172930,-2000.0,0.000149,2]
[342104770,1731445172953,-2000.0,0.000149,2]
[342104771,1731445172976,-2000.0,0.000149,2]
[342104772,1731445172998,-2000.0,0.000149,2]
[342104773,1731445173022,-2000.0,0.000149,2]